bitfinex/quotes_SOLUSD_20250307
["timestamp","ask_amount","ask_price","bid_price","bid_amount"]
[1741377953372,35.20258941,146.78,146.77,0.033]
[1741377953680,30.43358941,146.78,146.77,0.033]
[1741377953870,35.20258941,146.78,146.77,0.033]
[1741377955871,47.12518941,146.78,146.69,0.033]
[1741377956076,30.43358941,146.73,146.69,0.033]
[1741377956275,30.43358941,146.74,146.69,0.033]
[1741377956476,30.43358941,146.74,146.69,6.85]
[1741377956677,30.43358941,146.76,146.69,37.28358941]
[1741377957384,30.43358941,146.75,146.69,6.85]
[1741377957583,30.43358941,146.74,146.69,0.033]
[1741377957783,30.43358941,146.75,146.69,37.28358941]
[1741377958171,30.43358941,146.74,146.69,6.85]
[1741377958578,30.43358941,146.74,146.69,0.033]
[1741377959191,30.43358941,146.73,146.69,0.033]
[1741377959667,30.43358941,146.74,146.69,0.033]
[1741377959867,30.43358941,146.75,146.69,30.46658941]
[1741377960085,30.43358941,146.76,146.7,30.43358941]
[1741377960287,6.01731422,146.78,146.71,30.43358941]
[1741377960474,30.43358941,146.77,146.71,30.43358941]
[1741377960670,30.43358941,146.77,146.69,0.033]
[1741377960671,1.24821422,146.78,146.72,30.43358941]
[1741377960872,30.43358941,146.77,146.7,30.43358941]
[1741377961176,30.43358941,146.75,146.69,30.46658941]
[1741377961667,30.43358941,146.75,146.69,0.033]
[1741377962069,30.43358941,146.75,146.69,30.46658941]
[1741377963093,30.43358941,146.75,146.69,0.033]
[1741377963094,30.43358941,146.73,146.69,0.033]
[1741377963688,30.43358941,146.75,146.69,30.46658941]
[1741377963865,118.75100363,146.78,146.71,30.43358941]
[1741377964071,4.7696,146.76,146.71,30.43358941]
[1741377964287,35.20318941,146.76,146.69,30.46658941]
[1741377964593,30.43358941,146.74,146.69,0.033]
[1741377964788,4.7696,146.76,146.69,0.033]
[1741377964789,30.43358941,146.71,146.69,0.033]
[1741377965090,7.48,146.74,146.69,0.033]
[1741377965588,37.91358941,146.74,146.69,0.033]
[1741377965791,30.43358941,146.73,146.69,0.033]
[1741377965991,30.43358941,146.72,146.69,0.033]
[1741377966185,30.43358941,146.71,146.69,0.033]
[1741377966381,30.43358941,146.72,146.69,0.033]
[1741377966584,35.20418941,146.73,146.69,0.033]
[1741377966785,7.48,146.74,146.69,0.033]
[1741377967096,31.68180363,146.78,146.72,30.43358941]
[1741377967279,36.45080363,146.78,146.71,30.43358941]
[1741377967484,30.43358941,146.75,146.69,30.46658941]
[1741377967690,30.43358941,146.76,146.69,30.46658941]
[1741377968093,30.43358941,146.77,146.7,30.43358941]
[1741377968302,6.01721422,146.78,146.71,30.43358941]
[1741377968597,30.43358941,146.77,146.7,37.24998941]
[1741377968797,30.43358941,146.77,146.7,30.43358941]
[1741377968976,30.43358941,146.75,146.69,30.46658941]
[1741377969177,30.43358941,146.76,146.69,30.46658941]
[1741377970412,31.68180363,146.78,146.71,30.43358941]
[1741377970600,36.45080363,146.78,146.71,30.43358941]
[1741377971299,1.24821422,146.78,146.74,30.43358941]
[1741377971602,31.68180363,146.78,146.71,31.99638941]
[1741377972101,31.68180363,146.78,146.72,30.43358941]
[1741377972394,31.68180363,146.78,146.73,6.8152]
[1741377972696,35.20128941,146.82,146.76,30.43358941]
[1741377973081,30.43358941,146.83,146.76,30.43358941]
[1741377973280,30.43358941,146.83,146.77,30.43358941]
[1741377973482,35.23068941,146.84,146.77,30.43358941]
[1741377973698,0.03,146.84,146.78,30.43358941]
[1741377974003,0.03,146.84,146.79,30.43358941]
[1741377974596,35.23078941,146.84,146.79,6.8121]
[1741377974797,0.03,146.84,146.79,37.24568941]
[1741377975588,30.46358941,146.84,146.78,30.43358941]
[1741377975787,30.43358941,146.82,146.76,37.91358941]
[1741377976009,30.43358941,146.8,146.72,6.3073]
[1741377976196,30.43358941,146.8,146.74,30.43358941]
[1741377976691,30.43358941,146.81,146.75,30.43358941]
[1741377977200,30.43358941,146.79,146.72,13.1228]
[1741377977387,30.43358941,146.79,146.73,30.43358941]
[1741377977789,30.43358941,146.78,146.72,43.55648941]
[1741377977995,30.43358941,146.79,146.72,43.55648941]
[1741377978204,30.43358941,146.78,146.72,0.033]
[1741377978390,30.43358941,146.77,146.72,0.033]
[1741377978605,30.43358941,146.78,146.72,0.033]
[1741377978801,4.7693,146.77,146.72,30.46658941]
[1741377979002,0.03,146.84,146.72,30.46658941]
[1741377979201,0.03,146.84,146.79,30.43358941]
[1741377979504,30.43358941,146.81,146.75,30.43358941]
[1741377979691,30.43358941,146.8,146.73,7.48]
[1741377979884,30.46358941,146.84,146.73,7.48]
[1741377980091,0.03,146.84,146.79,30.43358941]
[1741377980313,30.46358941,146.84,146.78,30.43358941]
[1741377980491,35.23068941,146.84,146.77,30.43358941]
[1741377981007,0.03,146.84,146.79,30.43358941]
[1741377981200,30.43358941,146.83,146.74,6.8147]
[1741377981505,4.7971,146.84,146.74,30.43358941]
[1741377981682,30.43358941,146.79,146.72,6.8486]
[1741377981887,30.43358941,146.79,146.73,30.43358941]
[1741377982089,30.43358941,146.8,146.73,30.43358941]
[1741377982297,30.43358941,146.8,146.74,30.43358941]
[1741377982902,16.7148,146.84,146.76,30.43358941]
[1741377982903,30.43358941,146.82,146.76,30.43358941]
[1741377983223,30.43358941,146.82,146.75,37.24768941]
[1741377983504,30.43358941,146.81,146.75,37.24768941]
[1741377983703,30.43358941,146.8,146.73,37.24878941]
[1741377984109,0.03,146.84,146.76,30.43358941]
[1741377984316,0.03,146.84,146.81,30.43358941]
[1741377984485,0.03,146.84,146.8,30.43358941]
[1741377984823,30.46358941,146.84,146.78,37.24598941]
[1741377985195,0.03,146.84,146.78,37.24598941]
[1741377985396,0.03,146.79,146.78,6.8124]
[1741377985607,0.03,146.79,146.78,37.24598941]
[1741377987990,0.03,146.84,146.79,1.6409]
[1741377988201,0.03,146.84,146.83,30.43358941]
[1741377989395,0.03,146.84,146.82,37.24438941]
[1741377989833,0.03,146.84,146.83,30.43358941]
[1741377990120,0.03,146.84,146.81,37.24498941]
[1741377990418,0.03,146.84,146.83,30.43358941]
[1741377990913,0.03,146.84,146.82,7.46]
[1741377991121,0.03,146.84,146.83,30.43358941]
[1741377991609,0.03,146.84,146.81,30.43358941]
[1741377991917,0.03,146.84,146.81,37.24508941]
[1741377992419,0.03,146.84,146.81,30.43358941]
[1741377993117,0.03,146.84,146.8,30.43358941]
[1741377993715,0.03,146.84,146.81,30.43358941]
[1741377994107,0.03,146.84,146.8,30.43358941]
[1741377994302,0.03,146.84,146.81,30.43358941]
[1741377994615,0.03,146.84,146.82,30.43358941]
[1741377994815,0.03,146.84,146.81,30.43358941]
[1741377995404,0.03,146.84,146.79,8.4532]
[1741377995603,0.03,146.84,146.79,38.88678941]
[1741377997017,0.03,146.84,146.79,30.43358941]
[1741377997207,0.03,146.84,146.77,37.24688941]
[1741377997208,49.08323827,146.83,146.77,37.24688941]
[1741377997606,49.08323827,146.83,146.77,30.43358941]
[1741377997923,18.64964886,146.81,146.77,37.24688941]
[1741377998120,4.7675,146.83,146.78,30.43358941]
[1741377998304,53.88033827,146.84,146.78,30.43358941]
[1741377998917,30.43358941,146.83,146.77,37.24688941]
[1741377999500,53.88033827,146.84,146.77,37.24688941]
[1741377999700,0.03,146.84,146.81,30.43358941]
[1741378000112,0.03,146.84,146.82,30.43358941]
[1741378000432,0.03,146.84,146.81,30.43358941]
[1741378000818,0.03,146.84,146.82,30.43358941]
[1741378001118,0.03,146.84,146.83,30.43358941]
[1741378002100,0.03,146.84,146.82,30.43358941]
[1741378003327,0.03,146.84,146.83,30.43358941]
[1741378003627,0.03,146.92,146.83,62.46207882]
[1741378003919,0.03,146.92,146.89,30.43358941]
[1741378004225,18.67964886,146.92,146.86,30.43358941]
[1741378005127,0.03,146.92,146.88,30.43358941]
[1741378005514,0.03,146.92,146.87,30.43358941]
[1741378005723,18.64964886,146.91,146.86,30.43358941]
[1741378006124,23.41474886,146.91,146.86,30.43358941]
[1741378006829,53.84833827,146.91,146.85,37.89358941]
[1741378007028,53.84833827,146.91,146.85,7.46]
[1741378007210,53.84833827,146.91,146.8,329.0291]
[1741378007211,18.64964886,146.87,146.82,30.43358941]
[1741378007613,18.64964886,146.86,146.82,30.43358941]
[1741378008131,18.64964886,146.87,146.82,30.43358941]
[1741378008821,49.08323827,146.88,146.82,30.43358941]
[1741378009021,18.64964886,146.88,146.83,30.43358941]
[1741378009216,18.64964886,146.89,146.85,30.43358941]
[1741378009720,18.64964886,146.89,146.84,30.43358941]
[1741378010329,23.41474886,146.9,146.84,30.43358941]
[1741378010505,53.84833827,146.9,146.84,37.24358941]
[1741378010705,49.08323827,146.88,146.8,6.8119]
[1741378010907,49.08323827,146.88,146.8,37.24548941]
[1741378010908,30.43358941,146.87,146.8,37.24548941]
[1741378011431,30.43358941,146.87,146.81,30.43358941]
[1741378011611,55.71883827,146.88,146.81,30.43358941]
[1741378011811,30.43358941,146.87,146.8,6.8119]
[1741378012015,30.43358941,146.87,146.81,30.43358941]
[1741378012414,60.48473827,146.88,146.82,37.24458941]
[1741378012733,33.32570363,146.91,146.85,30.43358941]
[1741378012925,18.64964886,146.9,146.86,30.43358941]
[1741378014132,18.64964886,146.9,146.87,30.43358941]
[1741378014327,0.03,146.92,146.89,6.8078]
[1741378014532,0.03,146.92,146.88,37.24168941]
[1741378014829,18.67964886,146.92,146.86,30.43358941]
[1741378015031,0.03,146.92,146.87,30.43358941]
[1741378015213,0.03,146.92,146.88,30.43358941]
[1741378015412,0.03,146.92,146.91,30.43358941]
[1741378015731,0.03,146.92,146.88,30.43358941]
[1741378016512,0.03,146.92,146.89,37.24138941]
[1741378016914,0.03,146.92,146.89,30.43358941]
[1741378017237,0.03,146.92,146.88,37.24168941]
[1741378018243,0.03,146.92,146.9,30.43358941]
[1741378018445,0.03,146.92,146.91,30.43358941]
[1741378018733,0.03,146.92,146.91,37.24038941]
[1741378019913,0.03,146.92,146.89,37.24138941]
[1741378020127,0.03,146.92,146.88,37.24168941]
[1741378020326,0.03,146.92,146.89,30.43358941]
[1741378020529,0.03,146.92,146.9,30.43358941]
[1741378020914,0.03,146.92,146.91,30.43358941]
[1741378021116,0.0001,146.92,146.91,30.43358941]
[1741378021639,0.0001,146.93,146.91,30.43358941]
[1741378021839,0.0001,146.93,146.92,30.43358941]
[1741378022025,0.0001,146.94,146.92,60.86717882]
[1741378022342,0.03,146.99,146.93,62.52347882]
[1741378022540,0.0001,146.98,146.97,30.43358941]
[1741378022837,0.0001,146.98,146.97,44.67768941]
[1741378023823,0.0001,146.98,146.97,7.44]
[1741378024023,0.0001,146.98,146.97,37.87358941]
[1741378024221,0.0001,146.98,146.97,7.44]
[1741378024619,0.0001,146.98,146.96,30.43358941]
[1741378024826,0.0001,146.98,146.94,30.43358941]
[1741378025233,0.0001,146.98,146.96,30.43358941]
[1741378025434,0.0001,146.98,146.97,30.43358941]
[1741378026114,0.0001,146.98,146.95,30.43358941]
[1741378026527,0.0001,146.98,146.94,30.43358941]
[1741378026841,30.43358941,146.97,146.91,30.43358941]
[1741378027018,18.64964886,146.94,146.87,14.2485]
[1741378027225,49.08333827,146.98,146.91,30.43358941]
[1741378027423,30.43358941,146.97,146.91,30.43358941]
[1741378028339,18.64964886,146.97,146.92,30.43358941]
[1741378029042,0.0001,146.98,146.95,30.43358941]
[1741378029246,0.0001,146.98,146.94,30.43358941]
[1741378029426,23.41234886,146.98,146.93,30.43358941]
[1741378030244,49.08323827,146.97,146.91,30.43358941]
[1741378030744,18.64964886,146.92,146.87,30.43358941]
[1741378030960,18.64964886,146.88,146.82,6.811]
[1741378031121,18.14964886,146.88,146.81,6.8444]
[1741378031321,18.14964886,146.88,146.83,30.43358941]
[1741378031752,18.14964886,146.88,146.82,30.43358941]
[1741378031939,48.58323827,146.88,146.82,30.43358941]
[1741378032263,48.58323827,146.88,146.81,30.46658941]
[1741378032628,30.43358941,146.87,146.82,9.78807172]
[1741378032824,18.14964886,146.88,146.81,0.033]
[1741378032825,30.43358941,146.85,146.81,0.033]
[1741378033031,6.2937,146.86,146.81,0.033]
[1741378033238,18.64964886,146.85,146.81,0.033]
[1741378034033,18.64964886,146.85,146.81,30.46658941]
[1741378034953,18.64964886,146.85,146.81,37.27798941]
[1741378035249,18.64964886,146.85,146.81,6.8444]
[1741378035651,49.08323827,146.85,146.81,0.033]
[1741378036229,18.64964886,146.85,146.81,6.8444]
[1741378036430,6.2937,146.86,146.81,37.27798941]
[1741378036645,6.5949,146.92,146.84,30.43358941]
[1741378036848,30.43358941,146.9,146.84,30.43358941]
[1741378037052,31.68180363,146.9,146.85,6.8096]
[1741378037248,18.64964886,146.88,146.84,6.81]
[1741378038349,30.43358941,146.88,146.82,37.24418941]
[1741378038535,49.08323827,146.85,146.81,0.033]
[1741378038737,18.64964886,146.82,146.81,0.033]
[1741378039042,49.08323827,146.82,146.81,0.033]
[1741378039434,49.08323827,146.83,146.81,0.033]
[1741378039636,6.045,146.95,146.82,357.84058941]
[1741378039952,6.045,146.95,146.89,30.43358941]
[1741378040150,55.12823827,146.95,146.88,30.43358941]
[1741378040358,55.12823827,146.95,146.89,30.43358941]
[1741378040734,36.47858941,146.95,146.89,30.43358941]
[1741378040962,0.0001,146.98,146.89,30.43358941]
[1741378040963,30.43368941,146.98,146.89,30.43358941]
[1741378041133,30.43368941,146.98,146.89,54.26088941]
[1741378041334,18.64964886,146.97,146.92,30.43358941]
[1741378041555,18.64964886,146.95,146.89,54.26088941]
[1741378042355,0.0001,146.98,146.93,30.43358941]
[1741378042538,0.0001,146.98,146.96,30.43358941]
[1741378042736,0.0001,146.98,146.91,1.5689]
[1741378042737,0.0001,146.98,146.97,30.43358941]
[1741378042936,0.0001,146.98,146.91,1.5689]
[1741378043245,0.0001,146.98,146.89,325.5282]
[1741378043442,45.64567849,146.96,146.89,365.08567849]
[1741378043642,64.29532735,146.93,146.89,7.44]
[1741378043838,64.29532735,146.93,146.85,45.64567849]
[1741378043839,18.64964886,146.91,146.85,45.64567849]
[1741378044164,18.64964886,146.9,146.84,45.64567849]
[1741378044630,45.64567849,146.9,146.84,45.64567849]
[1741378044836,64.29532735,146.91,146.84,45.64567849]
[1741378045335,6.5044,146.94,146.83,45.64567849]
[1741378045336,64.29532735,146.89,146.83,45.64567849]
[1741378045534,18.64964886,146.87,146.82,45.64567849]
[1741378045965,18.64964886,146.88,146.82,45.64567849]
[1741378046342,18.67964886,146.88,146.82,45.64567849]
[1741378046748,0.03,146.88,146.81,8.3863]
[1741378046953,0.03,146.88,146.87,45.64567849]
[1741378047151,0.0001,146.98,146.88,18.64964886]
[1741378047349,0.0001,146.98,146.95,45.64567849]
[1741378047542,0.0001,146.98,146.9,1.5428]
[1741378047740,0.0001,146.98,146.95,45.64567849]
[1741378047957,0.0001,146.98,146.9,1.5428]
[1741378047958,0.0001,146.98,146.93,45.64567849]
[1741378048156,0.0001,146.98,146.92,45.64567849]
[1741378048345,64.29532735,146.97,146.9,47.18847849]
[1741378048546,18.64964886,146.95,146.9,45.64567849]
[1741378048741,18.64964886,146.95,146.89,45.64567849]
[1741378048942,64.29532735,146.95,146.89,45.64567849]
[1741378049159,64.29532735,146.95,146.88,45.64567849]
[1741378049461,45.64567849,146.92,146.85,60.56627849]
[1741378049767,45.64567849,146.92,146.86,45.64567849]
[1741378049945,45.64567849,146.93,146.86,45.64567849]
[1741378051067,45.64567849,146.91,146.85,9.0071]
[1741378051257,45.64567849,146.9,146.85,7.44]
[1741378051462,18.64964886,146.89,146.83,45.64567849]
[1741378052467,45.64567849,146.9,146.83,52.45607849]
[1741378052648,45.64567849,146.91,146.84,45.64567849]
[1741378053044,45.64567849,146.89,146.83,6.8104]
[1741378053651,45.64567849,146.91,146.84,45.64567849]
[1741378054259,45.64567849,146.93,146.86,45.64567849]
[1741378054752,45.64567849,146.94,146.87,45.64567849]
[1741378054954,45.64567849,146.92,146.86,45.64567849]
[1741378055271,45.64567849,146.92,146.83,23.8368]
[1741378055476,45.64567849,146.93,146.86,45.64567849]
[1741378055848,45.64567849,146.93,146.87,6.8087]
[1741378056153,45.64567849,146.92,146.87,6.8087]
[1741378056353,45.64567849,146.92,146.85,45.64567849]
[1741378056567,45.64567849,146.92,146.86,6.809]
[1741378057366,45.64567849,146.94,146.87,45.64567849]
[1741378057582,45.64567849,146.94,146.87,357.64567849]
[1741378057751,45.64567849,146.94,146.88,6.8082]
[1741378057948,0.03,146.92,146.88,6.8082]
[1741378059365,45.67567849,146.92,146.85,45.64567849]
[1741378060774,45.64567849,146.88,146.84,0.033]
[1741378060961,4.7945,146.92,146.84,6.8429]
[1741378060962,45.64567849,146.87,146.84,6.8429]
[1741378061160,45.64567849,146.88,146.84,6.8429]
[1741378061380,4.7945,146.92,146.84,6.8429]
[1741378061381,45.64567849,146.9,146.84,6.8429]
[1741378062277,45.64567849,146.88,146.84,0.033]
[1741378062467,45.64567849,146.87,146.84,0.033]
[1741378062974,45.64567849,146.89,146.84,0.033]
[1741378063160,45.64567849,146.9,146.84,0.033]
[1741378063360,45.64567849,146.89,146.84,0.033]
[1741378063769,4.7947,146.92,146.84,45.67867849]
[1741378063972,45.64567849,146.91,146.84,45.67867849]
[1741378064365,45.64567849,146.9,146.84,0.033]
[1741378064569,45.64567849,146.89,146.84,312.033]
[1741378065168,45.64567849,146.89,146.84,318.8429]
[1741378065367,50.41117849,146.89,146.84,318.8429]
[1741378065579,45.64567849,146.9,146.84,318.8429]
[1741378065791,45.64567849,146.9,146.84,364.48857849]
[1741378065959,45.64567849,146.91,146.84,364.48857849]
[1741378066675,0.03,146.92,146.84,364.48857849]
[1741378067058,0.03,146.92,146.91,45.64567849]
[1741378067255,0.03,146.92,146.91,37.83839423]
[1741378067564,0.0001,146.98,146.91,56.48804309]
[1741378067766,0.0001,146.98,146.95,30.41839423]
[1741378068068,0.0001,146.98,146.94,6.5249]
[1741378068269,0.0001,146.98,146.97,30.41839423]
[1741378068472,0.0001,146.98,146.93,7.42]
[1741378068659,0.0001,146.98,146.93,37.83839423]
[1741378068867,0.0001,146.98,146.94,37.22379423]
[1741378069385,0.0001,146.98,146.94,52.41696707]
[1741378069577,0.0001,146.98,146.93,59.83736707]
[1741378069758,0.0001,146.98,146.93,53.03156707]
[1741378069960,45.61156707,146.97,146.93,7.42]
[1741378070564,0.0001,146.98,146.91,18.64964886]
[1741378070779,0.0001,146.98,146.94,45.61156707]
[1741378071160,0.0001,146.98,146.95,45.61156707]
[1741378071366,0.0001,146.98,146.94,45.61156707]
[1741378072183,0.0001,146.98,146.96,45.61156707]
[1741378072381,0.0001,146.98,146.97,45.61156707]
[1741378072878,0.0001,146.98,146.97,54.07616707]
[1741378073580,0.0001,146.98,146.97,366.07616707]
[1741378074785,0.0001,146.98,146.97,384.72581593]
[1741378075167,0.0001,146.98,146.97,72.72581593]
[1741378075363,0.01,146.99,146.98,18.64964886]
[1741378075564,0.01,146.99,146.98,64.26121593]
[1741378075776,0.01,146.99,146.98,53.03156707]
[1741378075963,0.01,146.99,146.98,59.83516707]
[1741378076680,0.01,146.99,146.98,78.48481593]
[1741378076886,0.0001,147.01,147.0,18.64964886]
[1741378077068,0.0001,147.01,147.0,110.89260479]
[1741378077266,0.0001,147.01,147.0,64.26121593]
[1741378077467,0.0001,147.01,146.98,31.2327]
[1741378077773,0.0001,147.01,146.99,45.61156707]
[1741378078279,0.0001,147.01,147.0,52.41426707]
[1741378078482,0.0001,147.01,146.98,59.83506707]
[1741378079674,0.0001,147.01,146.99,45.61156707]
[1741378080473,0.0001,147.01,146.98,59.83506707]
[1741378080676,0.0001,147.01,146.99,45.61156707]
[1741378080877,0.0001,147.01,147.0,45.61156707]
[1741378082166,0.0001,147.01,146.99,45.61156707]
[1741378082996,0.0001,147.01,146.99,52.41446707]
[1741378083281,0.0001,147.01,147.0,45.61156707]
[1741378084087,0.0001,147.01,146.99,52.41446707]
[1741378084271,0.0001,147.01,147.0,45.61156707]
[1741378084893,0.0001,147.01,147.0,52.41426707]
[1741378087489,0.0001,147.01,146.97,6.8039]
[1741378088369,0.0001,147.01,146.94,18.5166]
[1741378088370,45.61166707,147.01,146.95,52.41656707]
[1741378088999,0.0001,147.01,146.95,69.42906707]
[1741378089174,0.0001,147.01,146.98,45.61156707]
[1741378089487,0.0001,147.01,147.0,37.19311299]
[1741378089682,0.0001,147.01,147.0,63.26276185]
[1741378089886,0.03,147.07,147.01,18.64964886]
[1741378090087,0.03,147.07,147.05,30.39041299]
[1741378090275,0.03,147.07,147.06,30.39041299]
[1741378090475,0.03,147.07,147.06,37.81041299]
[1741378090680,0.03,147.07,147.06,7.42]
[1741378090875,0.03,147.07,147.06,37.81041299]
[1741378091687,0.03,147.07,147.06,85.59031299]
[1741378091878,0.03,147.13,147.07,18.64964886]
[1741378092083,0.03,147.13,147.12,30.39041299]
[1741378092580,0.03,147.13,147.12,58.01966185]
[1741378092786,0.03,147.16,147.12,130.40923568]
[1741378093094,0.03,147.16,147.15,30.39041299]
[1741378093278,0.03,147.16,147.15,91.03884264]
[1741378093477,0.03,147.16,147.15,50.05884264]
[1741378093701,30.39041299,147.26,147.15,56.85454264]
[1741378093903,35.14351299,147.27,147.2,30.39041299]
[1741378094088,30.39041299,147.27,147.21,30.39041299]
[1741378094391,30.39041299,147.3,147.23,30.39041299]
[1741378094776,30.39041299,147.29,147.23,30.39041299]
[1741378094972,30.39041299,147.28,147.22,30.39041299]
[1741378095283,30.39041299,147.31,147.25,30.39041299]
[1741378095901,30.39041299,147.29,147.23,30.39041299]
[1741378096191,30.39041299,147.25,147.2,7.4]
[1741378096504,30.39041299,147.26,147.2,37.79041299]
[1741378096683,30.39041299,147.25,147.2,7.4]
[1741378097200,18.64964886,147.3,147.2,7.4]
[1741378097402,30.39041299,147.27,147.21,37.18341299]
[1741378097899,35.14371299,147.27,147.21,30.39041299]
[1741378098099,30.39041299,147.27,147.21,37.18331299]
[1741378098274,35.14321299,147.28,147.22,30.39041299]
[1741378098477,30.39041299,147.27,147.21,30.39041299]
[1741378098968,30.39041299,147.28,147.22,30.39041299]
[1741378099196,30.39041299,147.29,147.23,30.39041299]
[1741378099403,30.39041299,147.28,147.22,30.39041299]
[1741378099585,30.39041299,147.31,147.24,30.39041299]
[1741378099791,4.7522,147.3,147.25,30.39041299]
[1741378100105,4.7512,147.33,147.27,30.39041299]
[1741378100279,30.39041299,147.32,147.26,30.39041299]
[1741378100481,30.39041299,147.31,147.25,30.39041299]
[1741378100675,30.39041299,147.3,147.23,30.39041299]
[1741378100912,30.39041299,147.27,147.21,30.39041299]
[1741378101081,30.39041299,147.27,147.2,44.58351299]
[1741378101284,30.39041299,147.27,147.21,30.39041299]
[1741378101600,30.39041299,147.27,147.2,37.79041299]
[1741378101805,30.39041299,147.26,147.2,7.4]
[1741378102009,35.14391299,147.26,147.2,44.58371299]
[1741378102610,4.7535,147.26,147.21,30.39041299]
[1741378102780,35.14391299,147.26,147.2,44.58371299]
[1741378102982,35.14391299,147.26,147.2,14.1933]
[1741378103181,35.14391299,147.26,147.2,44.58371299]
[1741378104211,4.7525,147.29,147.2,14.1933]
[1741378104382,11.8783,147.33,147.26,30.39041299]
[1741378104719,6.74284137,147.33,147.27,30.39041299]
[1741378104876,30.39041299,147.33,147.26,30.39041299]
[1741378105081,4.7509,147.34,147.26,30.39041299]
[1741378105307,35.14221299,147.32,147.26,30.39041299]
[1741378105610,30.39041299,147.31,147.22,328.9811]
[1741378105803,30.39041299,147.3,147.24,30.39041299]
[1741378106116,30.39041299,147.31,147.25,30.39041299]
[1741378106576,30.39041299,147.31,147.24,37.79041299]
[1741378106777,30.39041299,147.29,147.24,7.4]
[1741378106998,0.03,147.31,147.24,7.4]
[1741378107304,35.14341299,147.28,147.24,7.4]
[1741378108017,30.39041299,147.26,147.2,30.39041299]
[1741378108210,30.39041299,147.25,147.19,6.7938]
[1741378108523,6.5344,147.31,147.21,30.39041299]
[1741378108684,30.39041299,147.29,147.23,30.39041299]
[1741378109019,30.39041299,147.27,147.2,30.39041299]
[1741378109222,18.64964886,147.29,147.19,6.7938]
[1741378109433,30.39041299,147.26,147.19,37.18421299]
[1741378109725,35.14321299,147.28,147.21,30.39041299]
[1741378109938,35.14321299,147.28,147.22,30.39041299]
[1741378110106,30.39041299,147.27,147.21,30.39041299]
[1741378110499,30.39041299,147.27,147.2,30.39041299]
[1741378110724,4.7528,147.28,147.21,30.39041299]
[1741378110725,35.14321299,147.28,147.21,30.39041299]
[1741378110919,6.5344,147.31,147.21,50.05857954]
[1741378111107,30.39041299,147.34,147.28,30.39041299]
[1741378111309,35.14141299,147.34,147.28,37.17991299]
[1741378111935,35.14141299,147.34,147.28,30.39041299]
[1741378112108,4.751,147.34,147.28,30.39041299]
[1741378112307,8.2649948,147.35,147.29,30.39041299]
[1741378112529,13.0155948,147.35,147.29,30.39041299]
[1741378113144,43.40600779,147.35,147.29,30.39041299]
[1741378113628,8.2649948,147.35,147.3,30.39041299]
[1741378113808,1.7547948,147.35,147.33,30.39041299]
[1741378114019,1.7547948,147.35,147.31,30.39041299]
[1741378114215,36.89590779,147.35,147.29,30.39041299]
[1741378115035,36.89590779,147.35,147.28,30.39041299]
[1741378115237,30.39041299,147.32,147.26,7.4]
[1741378115534,30.39041299,147.3,147.26,7.4]
[1741378115708,30.39041299,147.3,147.24,37.18201299]
[1741378115909,35.14221299,147.31,147.25,30.39041299]
[1741378116107,30.39041299,147.3,147.24,30.39041299]
[1741378116336,30.39041299,147.29,147.2,14.1934]
[1741378116542,30.39041299,147.28,147.22,30.39041299]
[1741378117262,30.39041299,147.24,147.18,32.05001299]
[1741378117562,30.39041299,147.24,147.18,30.39041299]
[1741378117748,30.39041299,147.23,147.16,0.033]
[1741378117950,30.39041299,147.22,147.16,30.42341299]
[1741378118467,41.54961299,147.24,147.18,30.39041299]
[1741378118760,41.54961299,147.24,147.17,30.39041299]
[1741378119264,36.79521299,147.24,147.17,30.39041299]
[1741378119424,6.4048,147.24,147.22,0.033]
[1741378119827,30.39041299,147.23,147.22,0.033]
[1741378121235,30.39041299,147.25,147.22,0.033]
[1741378121735,35.14481299,147.23,147.22,0.033]
[1741378122244,30.39041299,147.24,147.22,0.033]
[1741378122444,30.39041299,147.25,147.22,0.033]
[1741378122651,30.39041299,147.23,147.22,0.033]
[1741378123462,49.04006185,147.23,147.22,0.033]
[1741378124260,30.39041299,147.23,147.22,0.033]
[1741378124474,17.9022,147.27,147.22,0.033]
[1741378124475,30.39041299,147.25,147.22,0.033]
[1741378124655,30.39041299,147.23,147.22,0.033]
[1741378124857,49.04006185,147.23,147.22,0.033]
[1741378125963,53.79446185,147.23,147.22,0.033]
[1741378126165,18.64964886,147.23,147.22,0.033]
[1741378126360,18.64964886,147.26,147.22,0.033]
[1741378126555,6.0193,147.27,147.22,0.033]